bitfinex/quotes_ETHUSD_20220201
["timestamp","ask_amount","ask_price","bid_price","bid_amount"]
[1643674321248,0.6772976,2700.5,2699.5,0.485]
[1643674321443,0.6772976,2700.5,2699.6,0.03371053]
[1643674321743,0.6772976,2700.5,2699.7,0.03371053]
[1643674321971,0.1852,2700.4,2699.7,0.03371053]
[1643674322149,0.42644253,2700.7,2700.0,0.03371053]
[1643674322345,0.34550609,2700.6,2700.0,0.03371053]
[1643674322544,0.34550609,2700.6,2699.6,0.18483]
[1643674323345,0.93378909,2700.5,2699.6,0.18483]
[1643674323553,2.3304,2701.2,2699.7,21.81]
[1643674323753,0.185,2701.8,2700.0,0.01224152]
[1643674323949,0.25,2702.0,2700.9,0.03371053]
[1643674323950,0.185,2702.0,2700.9,0.03371053]
[1643674324151,0.185,2702.0,2700.6,0.445]
[1643674324152,0.86178542,2701.9,2700.6,0.445]
[1643674324376,0.185,2702.0,2700.7,0.445]
[1643674324580,0.43380404,2700.8,2700.7,3.74473663]
[1643674324787,0.43380404,2700.8,2700.7,4.22956663]
[1643674325979,0.83692277,2701.7,2700.7,4.22956663]
[1643674326380,0.83692277,2701.7,2700.8,2.18595744]
[1643674326780,0.83692277,2701.7,2700.8,0.3]
[1643674327181,0.33803858,2700.8,2700.7,4.22956663]
[1643674327384,0.33803858,2700.8,2700.7,3.52983]
[1643674327581,0.83692277,2701.7,2700.7,6.22983]
[1643674328220,0.185,2702.0,2700.8,2.07614826]
[1643674328626,0.0122989,2702.2,2701.1,0.44785433]
[1643674328627,0.44592352,2701.7,2701.1,0.44785433]
[1643674328822,0.185,2702.4,2701.2,3.00858926]
[1643674329023,1.3865,2702.6,2701.2,3.60858926]
[1643674329222,1.1365,2702.6,2701.3,1.25]
[1643674329426,0.92558969,2702.4,2701.4,0.445]
[1643674329624,0.92558969,2702.4,2701.4,0.745]
[1643674329823,0.92558969,2702.4,2701.4,0.445]
[1643674330128,0.185,2702.3,2701.0,0.62983]
[1643674330324,0.3763849,2701.1,2701.0,0.62983]
[1643674331468,0.3763849,2701.1,2701.0,0.92983]
[1643674331625,0.3763849,2701.1,2701.0,3.32983]
[1643674331879,0.185,2702.2,2701.0,3.32983]
[1643674333086,0.36508095,2701.4,2701.0,3.32983]
[1643674336432,0.36508095,2701.4,2701.1,2.11596958]
[1643674336637,0.36508095,2701.4,2701.0,3.32983]
[1643674337649,1.0891649,2702.2,2701.3,0.88693628]
[1643674337842,0.01203667,2702.3,2701.4,2.94924923]
[1643674338035,0.86785231,2702.2,2701.4,2.94924923]
[1643674338235,0.86785231,2702.2,2701.4,3.24924923]
[1643674338436,0.185,2702.6,2701.4,0.92983]
[1643674338635,0.86785064,2702.5,2701.4,3.01251996]
[1643674338865,0.43673137,2701.9,2701.4,3.01251996]
[1643674339275,0.43673137,2701.9,2701.5,2.11204013]
[1643674339776,0.43673137,2701.9,2701.4,0.92983]
[1643674340381,0.43673137,2701.9,2701.4,3.11978256]
[1643674341393,0.185,2702.7,2701.4,4.04520506]
[1643674341592,0.86885797,2702.6,2701.5,1.0]
[1643674341794,0.86885797,2702.6,2701.6,2.62917137]
[1643674342031,0.25,2703.0,2701.7,0.185]
[1643674342191,0.86875432,2702.9,2701.8,0.87983]
[1643674342390,0.86875432,2702.8,2701.9,2.14915254]
[1643674342591,0.86875432,2702.7,2702.0,0.445]
[1643674342899,0.73989702,2703.0,2702.1,2.20598514]
[1643674343132,1.1546,2703.3,2702.2,0.445]
[1643674343133,0.86911301,2702.9,2702.2,0.445]
[1643674343330,1.8487408,2703.3,2702.2,0.445]
[1643674343331,0.86911301,2702.8,2702.2,0.445]
[1643674343532,0.86911301,2702.7,2702.2,0.445]
[1643674343732,0.86911301,2702.6,2702.2,0.445]
[1643674343931,0.6941408,2703.2,2702.2,0.445]
[1643674344135,0.67873625,2702.9,2701.9,0.1340846]
[1643674344335,0.67873625,2702.9,2701.7,0.63]
[1643674344336,1.05513693,2702.8,2701.7,0.63]
[1643674344536,1.05513693,2702.8,2701.7,0.185]
[1643674344733,0.01291899,2702.4,2701.7,0.185]
[1643674344937,1.05513693,2702.3,2701.7,0.185]
[1643674345132,0.85313357,2702.1,2701.0,0.92546348]
[1643674345333,0.185,2702.3,2701.1,2.13624733]
[1643674345540,0.85480654,2702.2,2701.1,2.13624733]
[1643674346036,0.85480654,2702.2,2701.0,0.92546348]
[1643674346267,0.185,2702.1,2701.0,1.37046348]
[1643674346437,0.01291899,2702.4,2701.0,0.445]
[1643674346438,0.185,2702.3,2701.0,0.445]
[1643674346637,0.185,2702.3,2701.0,0.745]
[1643674346874,0.185,2702.3,2701.1,2.16238217]
[1643674347317,0.185,2702.3,2701.3,0.9254926]
[1643674347479,0.185,2702.3,2701.5,0.76806234]
[1643674347680,0.185,2702.4,2701.4,2.10598503]
[1643674347886,0.185,2702.4,2701.3,1.6704926]
[1643674348093,0.43548564,2701.4,2701.3,1.6704926]
[1643674348482,0.43548564,2701.4,2701.3,0.745]
[1643674350082,0.185,2702.2,2701.3,0.745]
[1643674350282,0.185,2702.6,2701.3,0.745]
[1643674350556,0.185,2702.7,2701.3,0.745]
[1643674350939,0.73640836,2702.4,2701.3,0.745]
[1643674351240,0.41046563,2701.5,2701.3,0.745]
[1643674351440,0.98640836,2702.4,2701.3,0.745]
[1643674351653,0.73640836,2702.4,2701.3,0.745]
[1643674352041,0.73640836,2702.4,2701.3,1.6705008]
[1643674352541,0.42049178,2701.4,2701.3,1.6705008]
[1643674352741,0.73640836,2702.4,2701.3,1.6705008]
[1643674353346,0.91692975,2701.9,2701.3,1.6705008]
[1643674353551,0.91692975,2701.9,2701.0,0.185]
[1643674353942,0.185,2701.8,2701.0,0.185]
[1643674354381,0.35614097,2701.7,2701.0,0.185]
[1643674354582,0.6704222,2701.3,2700.6,0.1340846]
[1643674354786,0.185,2701.6,2700.6,0.1340846]
[1643674354986,0.35614097,2701.7,2700.6,0.1340846]
[1643674355186,0.185,2701.6,2700.6,0.1340846]
[1643674355487,0.35614097,2701.7,2700.6,0.1340846]
[1643674355891,0.81668635,2701.4,2700.6,0.1340846]
[1643674356087,0.8791408,2702.0,2700.6,0.1340846]
[1643674357088,0.83946266,2701.3,2700.6,0.1340846]
[1643674357591,1.84016266,2701.3,2700.5,0.01]
[1643674358039,0.185,2701.2,2700.5,0.01]
[1643674358441,0.35848187,2701.1,2700.5,0.01]
[1643674358838,0.185,2701.2,2700.5,0.01]
[1643674359044,4.86169364,2701.7,2700.5,0.01]
[1643674359240,0.70709364,2701.7,2700.5,0.01]
[1643674359642,0.70709364,2701.7,2700.4,3.27740563]
[1643674359841,0.70709364,2701.7,2700.4,3.25536849]
[1643674360041,0.40812914,2700.7,2700.4,3.26754294]
[1643674360242,0.40812914,2700.7,2700.4,3.2840153]
[1643674361245,0.40812914,2700.7,2700.4,3.0990153]
[1643674361645,0.40812914,2700.7,2700.4,0.26]
[1643674361899,0.40812914,2700.7,2700.3,0.833]
[1643674362698,0.40812914,2700.7,2700.3,1.70969279]
[1643674363301,0.40812914,2700.7,2700.3,0.833]
[1643674364225,0.40812914,2700.7,2700.2,0.185]
[1643674364401,0.79109074,2700.6,2700.1,0.13819997]
[1643674366347,0.85966717,2700.5,2700.2,0.67984726]
[1643674367937,0.40812914,2700.7,2700.2,0.67984726]
[1643674368137,0.40812914,2700.7,2700.3,0.533]
[1643674368138,0.88034256,2700.6,2700.3,0.533]
[1643674370092,0.88034256,2700.6,2700.3,0.833]
[1643674373652,0.88034256,2700.6,2700.1,0.13819997]
[1643674374063,0.185,2700.5,2699.8,0.185]
[1643674374254,0.88034256,2700.4,2699.8,0.185]
[1643674374454,0.88034256,2700.4,2699.9,0.65092978]
[1643674374653,1.06534256,2700.3,2699.8,0.185]
[1643674374856,0.40812914,2700.7,2699.8,0.185]
[1643674374857,0.88034256,2700.2,2699.8,0.185]
[1643674375053,1.15286355,2700.1,2699.8,0.185]
[1643674375262,0.35414341,2700.1,2699.8,0.185]
[1643674375459,0.06177193,2700.1,2699.5,0.533]
[1643674375659,0.06177193,2700.1,2699.6,0.62487558]
[1643674376060,0.06177193,2700.1,2699.6,2.69618739]
[1643674376260,0.06177193,2700.1,2699.7,0.62487558]
[1643674376672,0.06177193,2700.1,2699.1,5.04369802]
[1643674376673,0.87984662,2700.0,2699.1,0.27228457]
[1643674376900,0.87984662,2700.0,2699.2,0.65807071]
[1643674376901,1.06504662,2700.0,2699.2,0.65807071]
[1643674377095,0.87984662,2699.9,2699.2,0.65807071]
[1643674377498,0.82541489,2699.7,2699.2,0.65807071]
[1643674377900,0.82541489,2699.7,2699.1,0.27228457]
[1643674378706,0.44798237,2699.6,2699.1,0.27228457]
[1643674378906,0.44798237,2699.6,2699.1,0.13819997]
[1643674379304,0.8984001,2699.2,2698.8,1.2264084]
[1643674379901,0.8984001,2699.2,2698.8,0.3]
[1643674380107,0.8984001,2699.2,2698.6,3.7040971]
[1643674380402,0.44277788,2699.1,2698.6,3.7040971]
[1643674381452,0.44277788,2699.1,2698.6,4.3040971]
[1643674381854,0.44277788,2699.1,2698.6,6.40776071]
[1643674382051,0.44277788,2699.1,2698.6,5.2305971]
[1643674382258,0.44277788,2699.1,2698.7,1.0]
[1643674383295,0.44277788,2699.1,2698.7,2.85279]
[1643674383856,0.44277788,2699.1,2698.7,3.7050519]
[1643674384053,0.71562807,2699.7,2698.7,3.7050519]
[1643674384352,0.1852,2700.0,2698.9,0.92639]
[1643674384518,0.1852,2700.5,2699.1,1.85237]
[1643674384721,0.4352,2700.7,2699.2,4.27936363]
[1643674384910,0.185,2700.8,2699.2,4.27936363]
[1643674385108,0.185,2700.8,2699.2,1.268]
[1643674385311,0.185,2700.8,2699.3,2.068004]
[1643674385312,0.32935527,2699.9,2699.3,2.068004]
[1643674385508,0.32935527,2699.9,2699.4,0.533]
[1643674385709,0.32935527,2699.9,2699.5,0.533]
[1643674385908,0.32935527,2699.9,2699.6,0.533]
[1643674386114,0.32935527,2699.9,2699.6,1.4591842]
[1643674386410,2.1062408,2700.8,2699.6,2.0591842]
[1643674386612,2.1062408,2700.8,2699.6,3.0591842]
[1643674386812,1.4121,2700.8,2699.6,2.133]
[1643674387017,1.4121,2700.8,2699.6,0.833]
[1643674387213,0.38373701,2699.9,2699.6,0.3]
[1643674387616,0.38373701,2699.9,2699.3,2.83571638]
[1643674388849,0.38373701,2699.9,2699.3,1.533]
[1643674389050,0.38373701,2699.9,2699.3,0.533]
[1643674389251,0.6941408,2700.6,2699.4,2.0]
[1643674389459,0.1852,2700.9,2699.6,0.01243556]
[1643674389654,0.6941408,2701.3,2699.6,2.79002556]
[1643674389855,0.6941408,2701.3,2699.8,22.06]
[1643674390158,0.6941408,2701.4,2700.1,1.8514746]
[1643674390350,0.35852736,2700.8,2700.3,1.8516]
[1643674390553,0.185,2701.4,2700.4,0.533]
[1643674390753,0.89173671,2701.6,2700.5,0.25]
[1643674390954,0.01259591,2701.6,2700.6,0.533]
[1643674391157,0.01259591,2701.6,2700.6,2.3845057]
[1643674391452,0.01259591,2701.6,2700.7,0.3]
[1643674391651,0.29654399,2701.4,2700.9,0.9256896]
[1643674391893,0.29654399,2701.4,2700.7,0.3]
[1643674392092,0.185,2701.3,2700.7,0.3]
[1643674392699,0.32020586,2700.9,2700.7,0.3]
[1643674393698,0.8791408,2701.5,2700.7,0.3]
[1643674393899,0.185,2701.5,2700.7,1.21476675]
[1643674394097,0.185,2701.5,2700.8,0.925799]
[1643674394297,0.185,2701.5,2700.9,0.3]
[1643674394498,0.8791408,2701.5,2700.9,0.3]
[1643674394701,0.185,2701.5,2700.9,0.3]
[1643674394906,0.8791408,2701.5,2700.9,0.3]
[1643674395097,0.8791408,2701.5,2700.8,0.925799]
[1643674395098,0.31757185,2701.3,2700.8,0.925799]
[1643674395303,0.6941408,2701.1,2700.2,0.1340846]
[1643674395543,2.59721551,2701.0,2700.2,0.1340846]
[1643674395965,3.29135631,2701.0,2700.2,0.1340846]
[1643674396349,0.8791408,2701.0,2700.2,0.1340846]
[1643674396546,3.02388887,2701.0,2700.2,0.1340846]
[1643674396747,2.17373619,2701.0,2700.2,0.1340846]
[1643674396949,2.34369982,2701.0,2700.2,0.1340846]
[1643674397152,2.43265555,2701.0,2700.2,0.1340846]
[1643674397347,0.32749089,2700.3,2700.2,0.1340846]
[1643674397750,1.25163794,2700.3,2700.1,0.3]
[1643674397953,0.32749089,2700.3,2700.1,0.3]
[1643674398350,0.32749089,2700.3,2700.1,0.6]
[1643674398553,0.92446355,2700.2,2700.1,0.6]
[1643674398753,0.92446355,2700.2,2699.7,1.1111828]
[1643674398957,0.1683,2700.1,2699.7,0.185]
[1643674399153,0.92446355,2700.0,2699.7,0.185]
[1643674400206,0.92446355,2700.0,2699.4,1.2262728]
[1643674400406,0.40257724,2699.6,2699.5,0.6161471]
[1643674400808,0.40257724,2699.6,2699.5,0.9161471]
[1643674401005,1.3282403,2699.6,2699.5,0.3]
[1643674401205,1.3282403,2699.6,2699.0,2.7789492]
[1643674401407,1.11,2700.2,2699.3,0.9263867]
[1643674401605,0.92579022,2700.1,2699.4,0.91620678]
[1643674401805,0.92579022,2700.0,2699.5,0.61620678]
[1643674402008,0.92579022,2699.9,2699.5,0.61620678]
[1643674402206,0.185,2700.3,2699.5,0.91620678]
[1643674402207,0.92579022,2699.8,2699.5,0.91620678]
[1643674402409,0.92579022,2699.7,2699.4,1.22713585]
[1643674402607,0.92579022,2699.7,2699.5,0.6167692]
[1643674402810,0.1852,2700.4,2699.5,0.9167692]
[1643674403061,0.92532942,2700.3,2699.5,0.3]
[1643674403253,0.92532942,2700.2,2699.4,2.1525379]
[1643674403550,0.92532942,2700.1,2699.5,0.61650595]
[1643674403758,0.92532942,2700.0,2699.5,0.61650595]
[1643674403950,0.92532942,2699.9,2699.5,1.84277595]
[1643674404150,0.185,2700.5,2699.5,1.84277595]
[1643674404151,0.92532942,2699.8,2699.7,0.9262555]
[1643674404353,0.1852,2700.6,2699.8,0.3]
[1643674404551,0.36412633,2700.0,2699.8,0.3]
[1643674404753,0.92519214,2699.9,2699.8,0.3]
[1643674406552,0.92519214,2699.9,2699.7,0.9262555]
[1643674406802,0.92519214,2699.8,2699.7,0.9262555]
[1643674407006,0.69770153,2700.5,2699.7,1.5423294]
[1643674407206,0.88270153,2700.5,2699.8,0.3]
[1643674407407,0.92519214,2700.4,2699.8,0.3]
[1643674407607,0.92110798,2700.8,2699.8,0.3]
[1643674407608,1.62289367,2700.6,2699.8,1.47609]
[1643674407814,0.92519214,2700.8,2699.8,1.47609]
[1643674408019,1.62289367,2700.8,2699.9,0.61602265]
[1643674408212,0.92519214,2700.7,2699.9,0.61602265]
[1643674408408,0.41375161,2700.2,2699.9,0.61602265]
[1643674408612,0.41375161,2700.2,2699.8,1.22609]
[1643674408613,0.9576057,2700.1,2699.8,1.22609]
[1643674408812,0.9576057,2700.1,2699.8,0.3]
[1643674409408,0.9576057,2700.1,2699.6,1.85209]
[1643674409709,0.9576057,2700.1,2699.7,0.88566978]
[1643674409908,0.9576057,2700.1,2699.7,0.3]
[1643674410209,0.9576057,2700.1,2699.5,3.05690853]
[1643674410409,0.9576057,2700.1,2699.6,0.58528141]
[1643674411046,0.38013779,2699.7,2699.6,0.58528141]
[1643674411648,1.3381903,2699.7,2699.6,0.58528141]
[1643674412047,1.3381903,2699.7,2699.6,2.43753591]
[1643674412752,0.69770153,2700.4,2699.6,2.43753591]
[1643674412951,0.926832,2700.3,2699.7,0.58528141]
[1643674413153,0.69770153,2700.5,2699.7,0.58528141]
[1643674413154,0.926832,2700.2,2699.7,0.58528141]
[1643674413350,0.926832,2700.1,2699.7,0.88528141]
[1643674413552,0.926832,2700.0,2699.7,0.3]
[1643674413749,0.926832,2700.0,2699.6,1.8522545]
[1643674413750,1.2576688,2699.9,2699.6,2.1522545]
[1643674413953,0.3308368,2699.9,2699.7,0.61622579]
[1643674415192,0.69770153,2700.5,2699.7,0.61622579]
[1643674415600,1.62478603,2700.5,2699.7,0.61622579]
[1643674416001,0.9270845,2700.5,2699.9,0.9261854]
[1643674416210,0.34435489,2700.1,2699.9,0.9261854]
[1643674416400,0.9270845,2700.0,2699.9,0.9261854]
[1643674416601,0.9270845,2700.0,2699.9,1.54253416]
[1643674417403,1.62478603,2700.6,2699.9,1.54253416]
[1643674417603,1.62478603,2700.6,2699.9,0.9261854]
[1643674417801,1.62478603,2700.6,2699.9,1.2261854]
[1643674418042,1.62478603,2700.6,2699.9,0.9261854]
[1643674418288,0.34445845,2700.2,2699.9,1.2261854]
[1643674418445,0.34445845,2700.2,2699.9,0.9261854]
[1643674418446,0.9270845,2700.1,2699.9,0.9261854]
[1643674419045,0.92581073,2700.1,2699.9,0.9261854]
[1643674419645,0.92581073,2700.1,2699.6,4.07989116]
[1643674419646,0.92581073,2700.1,2699.6,2.7784645]
[1643674419848,0.92581073,2700.1,2699.7,0.3]
[1643674420256,0.92581073,2700.1,2699.7,2.1524]
[1643674420657,0.92581073,2700.1,2699.7,0.3]
[1643674421493,0.92581073,2700.1,2699.7,1.22621]
[1643674422808,0.92581073,2700.1,2699.8,4.0045917]
[1643674423013,1.17900889,2701.0,2699.9,4.53528466]
[1643674423014,0.69770153,2700.7,2699.9,4.53528466]
[1643674423217,0.69770153,2700.8,2699.9,4.83528466]
[1643674423710,0.39806447,2700.6,2700.2,1.28583136]
[1643674423906,0.39806447,2700.6,2700.4,0.92595]
[1643674424101,0.39806447,2700.6,2700.4,1.22595]
[1643674425000,0.39806447,2700.6,2700.4,2.1519]
[1643674425691,0.69770153,2700.9,2700.4,2.1519]
[1643674426654,0.36019765,2700.7,2700.4,2.1519]
[1643674427055,0.36019765,2700.7,2700.4,1.8519]
[1643674427259,0.36019765,2700.7,2700.5,0.3]
[1643674427656,0.36019765,2700.7,2700.5,0.6]
[1643674428261,0.36019765,2700.7,2700.5,1.5259761]
[1643674428461,0.36019765,2700.7,2700.5,0.9259761]
[1643674428659,0.36019765,2700.7,2700.3,0.92595]
[1643674428660,1.05789918,2700.7,2700.3,0.92595]
[1643674428863,1.05789918,2700.7,2700.3,1.52595]
[1643674429059,0.36019765,2700.7,2700.3,1.52595]
[1643674429301,0.36019765,2700.7,2700.3,1.22595]
[1643674429500,0.36019765,2700.7,2700.3,1.52595]
[1643674429700,0.36019765,2700.7,2700.3,0.92595]
[1643674429903,0.36019765,2700.7,2700.3,1.64438905]
[1643674430701,0.36019765,2700.7,2700.3,2.24438905]
[1643674430939,0.36019765,2700.7,2700.4,0.92599]
[1643674431206,0.36019765,2700.7,2700.5,0.9259909]
[1643674431408,0.69770153,2700.9,2700.5,0.9259909]
[1643674431606,0.69770153,2700.9,2700.5,1.5259909]
[1643674432205,0.69770153,2700.9,2700.5,0.9259909]
[1643674433042,0.40667856,2700.7,2700.5,0.9259909]
[1643674434844,0.40667856,2700.7,2700.5,1.2259909]
[1643674435444,0.40667856,2700.7,2700.5,0.9259909]
[1643674435649,0.40667856,2700.7,2699.8,1.8523217]
[1643674435850,0.69865449,2700.4,2699.8,1.84185391]
[1643674436048,0.2108,2700.5,2699.7,0.25]
[1643674436049,0.90945449,2700.5,2699.7,0.25]
[1643674436250,0.69865449,2700.5,2699.7,0.25]
[1643674436455,0.33225014,2699.8,2699.7,0.25]
[1643674438101,0.69865449,2700.5,2699.7,3.02868]
[1643674438335,0.69865449,2700.4,2699.8,0.3]
[1643674439102,0.69865449,2700.4,2699.9,0.56847541]
[1643674439298,0.42300213,2700.3,2699.9,0.56847541]
[1643674439498,0.97807204,2700.2,2699.9,0.56847541]
[1643674439701,0.97807204,2700.2,2699.9,1.49469361]
[1643674439899,0.97807204,2700.2,2699.9,0.9262182]
[1643674440552,0.97807204,2700.2,2700.0,0.56852851]
[1643674440752,0.97807204,2700.2,2700.0,0.86852851]
[1643674441053,0.97807204,2700.2,2700.0,0.3]
[1643674441257,0.97807204,2700.2,2699.9,1.2262182]
[1643674441458,0.97807204,2700.2,2700.0,0.56853284]
[1643674442256,0.97807204,2700.2,2700.0,1.49472284]
[1643674442456,0.97807204,2700.2,2700.0,0.92619]
[1643674442658,0.97807204,2700.2,2700.0,1.85234]
[1643674442858,0.97807204,2700.2,2700.0,2.80707755]
[1643674443061,0.69865449,2700.5,2700.1,0.55290043]
[1643674443260,0.97807204,2700.4,2700.0,3.10707755]
[1643674443456,0.97807204,2700.3,2700.1,0.55290389]
[1643674443689,0.97807204,2700.2,2700.1,3.33095389]
[1643674443858,0.97807204,2700.2,2700.1,5.50183996]
[1643674444064,1.00221124,2700.5,2700.1,5.94618368]
[1643674444299,1.0022086,2700.4,2700.2,0.55290389]
[1643674444499,0.33596901,2700.7,2700.3,0.55290389]
[1643674444753,0.69865449,2700.8,2700.3,2.7779918]
[1643674444754,1.00220266,2700.6,2700.3,2.7779918]
[1643674444899,1.00220266,2700.5,2700.3,4.6298618]
[1643674445098,0.69865449,2700.8,2700.3,4.6298618]
[1643674445099,1.70085715,2700.8,2700.3,4.6298618]
[1643674445297,1.00220266,2700.7,2700.3,4.6298618]
[1643674445499,1.00220266,2700.6,2700.3,4.6298618]
[1643674445701,1.00220266,2700.5,2700.3,4.6298618]
[1643674445902,1.00220266,2700.4,2700.3,5.5558518]
[1643674446102,1.00220266,2700.4,2700.3,6.10033792]
[1643674446302,0.69865449,2700.8,2700.4,0.3]
[1643674446504,0.69865449,2700.8,2700.3,4.54280858]
[1643674446702,1.70085205,2700.8,2700.3,4.54280858]
[1643674446913,1.70085205,2700.8,2700.4,0.55229911]
[1643674446914,1.00219756,2700.7,2700.4,0.55229911]
[1643674447104,1.00219756,2700.6,2700.4,0.55229911]
[1643674447303,1.00219756,2700.5,2700.3,4.54280858]
[1643674447503,1.11194084,2700.8,2700.3,4.54280858]
[1643674447504,1.00219756,2700.4,2700.3,4.54280858]
[1643674447706,0.69865449,2700.8,2700.4,5.9]
[1643674447929,1.10610798,2701.1,2700.5,2.78646473]
[1643674447930,0.69865449,2701.1,2700.5,2.78646473]
[1643674448154,5.6350889,2701.6,2700.6,1.85145]
[1643674448155,0.69865449,2701.2,2700.6,1.85145]
[1643674448351,0.69865449,2701.2,2700.7,5.31906323]
[1643674448552,0.69865449,2701.3,2700.7,5.31906323]
[1643674448752,0.69865449,2701.5,2701.1,0.40741572]
[1643674448960,0.69865449,2701.5,2701.1,0.92568]
[1643674449152,0.69865449,2701.5,2701.2,0.9257]
[1643674449351,1.10043144,2701.6,2701.2,0.9257]
[1643674449750,1.10043144,2701.6,2701.2,3.50423095]
[1643674450053,1.10043144,2701.6,2701.2,1.1757]
[1643674450250,0.40177695,2701.6,2701.2,1.1757]
[1643674450854,0.40177695,2701.6,2701.3,1.2256936]
[1643674451654,0.69865449,2701.7,2701.3,1.2256936]
[1643674451900,0.69865449,2701.7,2701.4,1.8513169]
[1643674452102,1.10610798,2702.0,2701.5,0.92563]
[1643674452103,0.69865449,2701.8,2701.5,0.92563]
[1643674452298,0.69865449,2701.8,2701.4,3.0769469]
[1643674453149,0.69865449,2701.9,2701.5,0.35579486]
[1643674453301,1.28579108,2702.1,2701.5,1.65579486]
[1643674453302,0.64865449,2701.8,2701.5,1.65579486]
[1643674453499,0.64865449,2701.9,2701.7,0.92551]
[1643674453700,0.64865449,2701.9,2701.8,0.3]
[1643674453898,0.3646831,2702.1,2701.8,0.3]
[1643674454099,0.3646831,2702.1,2701.8,0.55]
[1643674455098,0.3646831,2702.1,2701.8,1.4755258]
[1643674455398,0.92110798,2702.3,2701.9,1.22553]
[1643674455655,6.49288108,2702.6,2702.0,3.45842]
[1643674455656,0.92110798,2702.4,2702.0,3.45842]
[1643674455854,5.411,2703.2,2702.0,3.45842]
[1643674455855,1.37248108,2703.3,2702.2,4.0]
[1643674456150,1.37248108,2703.3,2702.7,0.9250989]
[1643674456151,0.92867367,2703.3,2702.7,0.9250989]
[1643674456353,0.92867367,2703.4,2702.8,0.533]
[1643674456557,0.92867367,2703.4,2702.8,2.19605149]
[1643674456749,0.92867367,2703.4,2702.8,2.49605149]
[1643674457151,0.92867367,2703.4,2702.8,3.42109149]
[1643674457753,0.42739766,2703.2,2702.8,3.42109149]
[1643674457954,0.92867367,2703.5,2702.9,0.9250599]
[1643674458152,0.92867367,2703.4,2703.0,0.92508]
[1643674458388,0.92867367,2703.4,2703.0,1.22508]
[1643674459156,0.38237783,2703.3,2702.8,1.8501197]
[1643674459429,0.1849,2703.2,2702.6,2.7753286]
[1643674459610,0.1849,2703.2,2702.7,0.3]
[1643674460511,0.1849,2703.2,2702.7,1.21382871]
[1643674461014,0.38237783,2703.3,2702.7,0.3]
[1643674462210,0.38237783,2703.3,2702.7,0.29891518]
[1643674463052,0.38237783,2703.3,2702.8,0.9251734]
[1643674464360,0.38237783,2703.3,2702.9,0.3]
[1643674466263,0.38237783,2703.3,2702.7,0.3]
[1643674466464,0.38237783,2703.3,2702.6,1.96792593]
[1643674466926,0.01230313,2702.8,2702.6,0.9252486]
[1643674467092,0.01230313,2702.8,2702.0,2.20461149]
[1643674467093,0.43888459,2702.8,2702.3,0.9253552]
[1643674467692,0.43888459,2702.8,2702.3,1.1103552]
[1643674467901,0.93808983,2702.7,2702.3,0.185]
[1643674468097,0.93808983,2702.7,2701.9,2.71979924]
[1643674468300,1.12308983,2702.7,2701.9,2.71979924]
[1643674468600,0.35920976,2702.2,2701.9,2.71979924]
[1643674469297,0.35920976,2702.2,2701.9,3.7014978]
[1643674469498,0.35920976,2702.2,2701.6,0.185]
[1643674469499,1.12322408,2702.1,2701.6,0.185]
[1643674469701,0.93822408,2702.0,2701.6,0.185]
[1643674469898,0.185,2701.9,2701.6,0.185]
[1643674470098,0.93822408,2701.8,2701.6,0.185]
[1643674470571,4.32469016,2701.7,2701.6,0.185]
[1643674470759,5.26291424,2701.7,2700.7,5.94269843]
[1643674471055,1.13602266,2701.6,2700.8,1.8514548]
[1643674471255,1.13602266,2701.6,2700.7,0.25]
[1643674471256,0.185,2701.6,2700.7,0.25]
[1643674471457,0.95838318,2701.5,2700.7,0.25]
[1643674472268,0.95838318,2701.5,2700.7,0.55]
[1643674472460,2.28312321,2701.4,2700.0,3.0369626]
[1643674472659,0.95838318,2701.3,2700.0,3.0369626]
[1643674472856,0.95838318,2701.3,2699.7,0.25]
[1643674472857,3.72758464,2701.2,2699.8,0.185]
[1643674473061,0.95838318,2701.1,2699.8,0.185]
[1643674473255,0.43668855,2699.9,2699.8,0.185]
[1643674473961,2.12521294,2700.5,2699.8,0.185]
[1643674473962,9.521e-05,2700.2,2699.8,0.185]
[1643674474159,0.185,2700.5,2699.8,0.185]
[1643674474160,0.00444597,2700.5,2699.8,0.435]
[1643674474448,5.13403105,2701.2,2699.8,0.435]
[1643674474449,5.13913879,2701.2,2699.8,0.435]
[1643674474599,0.90820103,2701.1,2700.0,1.8518972]
[1643674474794,1.09320103,2701.1,2700.0,1.8518972]
[1643674474994,0.38283907,2700.4,2700.1,0.88815974]
[1643674475195,0.38283907,2700.4,2700.2,1.85189]
[1643674477000,0.38283907,2700.4,2700.2,0.92596]
[1643674477199,0.38283907,2700.4,2700.1,0.9259278]
[1643674477607,0.38283907,2700.4,2700.1,1.8520178]
[1643674478955,0.38283907,2700.4,2700.1,2.7780478]
[1643674479359,1.03914519,2701.1,2700.2,2.10192]
[1643674479559,0.93708463,2701.0,2700.2,5.98754642]
[1643674479860,0.185,2701.4,2700.5,0.92575]
[1643674480060,0.94565082,2701.3,2700.5,0.92575]
[1643674480263,0.94565082,2701.3,2700.6,0.3]
[1643674480462,0.322158,2701.2,2700.6,0.3]
[1643674480662,0.87779397,2701.1,2700.6,0.3]
[1643674481064,0.87779397,2701.1,2700.3,0.185]
[1643674481268,0.95112767,2701.0,2700.2,0.92604]
[1643674481464,0.95112767,2701.0,2699.9,0.92605]
[1643674481465,0.185,2700.9,2699.9,0.92605]
[1643674481662,0.95112767,2700.8,2700.0,0.3]
[1643674482102,0.185,2701.0,2700.0,0.3]
[1643674482302,0.44447133,2700.1,2700.0,0.3]
[1643674482958,0.44447133,2700.1,2700.0,0.92609]
[1643674483114,1.17827133,2700.1,2699.6,0.9262507]
[1643674483311,3.50085232,2700.1,2699.1,4.70382]
[1643674483514,3.49395556,2700.1,2699.1,4.70382]
[1643674483709,0.90927028,2699.6,2699.1,4.70382]
[1643674483907,0.90927028,2699.6,2699.2,0.92636]
[1643674484209,0.90927028,2699.6,2699.2,1.8525681]
[1643674484407,0.90927028,2699.6,2698.9,0.1852]
[1643674484810,3.05835577,2699.6,2698.9,0.1852]
[1643674485009,0.34270767,2699.5,2698.9,0.1852]
[1643674485212,2.16079664,2699.4,2698.9,0.1852]
[1643674485647,1.71090767,2699.5,2698.9,0.1852]
[1643674485850,1.71090767,2699.5,2698.8,0.13819997]
[1643674486245,1.71090767,2699.5,2698.8,0.08819997]